Cogmind - Beta 14 @@@ ROGUE MODE // 2025.03.29 @ 01:43:05 Player: Prakos Result: Self-destructed Performance ------------- Evolutions (3) 1500 Regions Visited (5) 1000 Robots Destroyed (33) 165 Value Destroyed (867) 867 Prototype IDs (0) 0 Alien Tech Used (0) 0 Bonus (500) 500 TOTAL SCORE: 4032 Bonus ------- Entered DSFs 500 Cogmind --------- Core Integrity 505/700 Matter 287/300 Energy 100/100 System Corruption 0% Temperature Cool (0) Movement Core (400) Ox7 Location -7/DSF Parts ------- > --- POWER (1) -------- (None) > --- PROPULSION (4) --- (None) > --- UTILITY (5) ------ Medium Storage Unit Hacking Suite > --- WEAPON (3) ------- Great Axe Great Axe Great Axe > --- INVENTORY (10) --- Light Deuterium Engine Hybrid Deuterium Engine Hybrid Deuterium Engine Micro Nuclear Core Advanced Heat Sink Improved Melee Analysis Suite Heavy Laser Grenade Launcher Datajack Peak State ------------ > --- POWER ------------ Light Angular Momentum Engine > --- PROPULSION ------- Aluminum Leg Carbon-fiber Leg Carbon-fiber Leg Carbon-fiber Leg > --- UTILITY ---------- Medium Storage Unit Improved Sensor Array Improved Signal Interpreter Improved Melee Analysis Suite Hacking Suite > --- WEAPON ----------- Great Axe Great Axe Great Axe > --- INVENTORY -------- Light Deuterium Engine Light Nuclear Core Hybrid Deuterium Engine Hybrid Deuterium Engine Micro Nuclear Core Advanced Heat Sink ECM Suite Heavy Laser Grenade Launcher Datajack [Rating: 44] Favorites ----------- Power Ion Engine Engine Ion Engine Power Core Light Nuclear Core Propulsion Aluminum Leg Leg Aluminum Leg Utility Medium Storage Unit Device Sensor Array Storage Medium Storage Unit Processor Improved Signal Interpreter Hackware Hacking Suite Protection Hardened Medium Armor Plating Weapon Great Axe Energy Gun Beam Rifle Ballistic Gun Heavy Assault Rifle Ballistic Cannon Light Cannon Impact Weapon Mace Slashing Weapon Great Axe Build | -11 -10 -9 -8 -7 -7 ------- Run | Yrd Mat Mat Mat Fac DSF Slots Evolved 6 | . . 2 2 2 . Power . | . . . . . . Propulsion 2 | . . . 1 1 . Utility 3 | . . 2 . 1 . Weapon 1 | . . . 1 . . Parts Attached 37 | 6 4 5 18 2 2 Power 4 | 1 . . 2 . 1 Engine 2 | 1 . . 1 . . Core 2 | . . . 1 . 1 Reactor . | . . . . . . Propulsion 9 | 2 . . 6 1 . Treads . | . . . . . . Leg 9 | 2 . . 6 1 . Wheel . | . . . . . . Hover . | . . . . . . Flight . | . . . . . . Utility 10 | 1 2 2 3 1 1 Device 4 | . 1 2 1 . . Storage 2 | 1 1 . . . . Processor 2 | . . . 1 . 1 Hackware 1 | . . . . 1 . Protection 1 | . . . 1 . . Artifact . | . . . . . . Weapon 14 | 2 2 3 7 . . Energy Gun 8 | 2 1 2 3 . . Energy Cannon . | . . . . . . Ballistic Gun 1 | . . 1 . . . Ballistic Cannon 1 | . 1 . . . . Launcher . | . . . . . . Special Weapon . | . . . . . . Impact Weapon 1 | . . . 1 . . Slashing Weapon 3 | . . . 3 . . Piercing Weapon . | . . . . . . Special Melee Weapon . | . . . . . . Unidentified Prototypes . | . . . . . . Parts Lost 15 | . . 2 4 . 9 Power 2 | . . . . . 2 Propulsion 7 | . . . 3 . 4 Utility 3 | . . . . . 3 Weapon 3 | . . 2 1 . . Highest Loss Streak 9 | . . 1 2 . 9 To Critical Strikes . | . . . . . . Average Slot Usage (%) 95 | . 95 99 95 99 82 Engine 6 | . 14 11 3 7 1 Core 3 | . . . 5 . 4 Leg 23 | . 28 22 22 29 23 Device 15 | . 10 32 10 7 1 Storage 9 | . 14 11 9 7 7 Processor 5 | . . . 8 7 11 Protection 4 | . . . 7 7 . Energy Gun 9 | . 17 7 10 . . Ballistic Cannon 5 | . 9 11 4 . . Impact Weapon 2 | . . . 3 . . Slashing Weapon 6 | . . . 8 23 23 Peak Build Rating 44 | 6 9 11 38 43 44 Average Rating 19 | 4 7 9 24 42 36 On Entrance 17 | . 6 9 10 38 43 Naked Turns . | . . . . . . Heaviest Build 40 | 14 22 25 40 40 40 Greatest Support 55 | 20 20 20 45 55 55 Greatest Overweight (x) 2 | 1 1 1 2 . 2 Average Overweight (x) . | . . 1 . . . Largest Inventory Capacity 10 | 8 10 10 10 10 10 Average Capacity 9 | 7 8 10 10 10 10 Most Carried 10 | 2 9 9 10 10 10 Average Carried 8 | 1 5 7 9 8 9 Final Capacity 10 | 8 10 10 10 10 10 Final Carried 10 | 2 9 8 10 10 9 Class Distribution -------------------- 46% | Scavenger-Mutant 37% | Mutant 9% | Scavenger-Skirmisher 4% | Skirmisher Dominant Class ---------------- Mutant | -10/Materials Mutant | -9/Materials Scavenger-Mutant | -8/Materials Scavenger-Mutant | -7/Factory Scavenger-Gladiator | -7/DSF Resources | -11 -10 -9 -8 -7 -7 ----------- Run | Yrd Mat Mat Mat Fac DSF Matter Collected 785 | 247 41 262 233 . 2 Remotely . | . . . . . . Salvage Created 1287 | . 58 629 600 . . Parts 47 | . 3 22 22 . . Haulers Intercepted 2 | . 1 1 . . . Recyclers Shooed 3 | . . 2 1 . . Parts Field Recycled . | . . . . . . Retrieved Matter . | . . . . . . Parts Self-Destructed . | . . . . . . Prevented . | . . . . . . Kills | -11 -10 -9 -8 -7 -7 ------- Run | Yrd Mat Mat Mat Fac DSF Combat Hostiles Destroyed 18 | . . 7 11 . . Melee 5 | . . . 5 . . Guns 3 | . . 3 . . . Cannons 9 | . . 4 5 . . Classes Destroyed 10 | . 2 5 3 . . Worker 1 | . . . 1 . . Builder 1 | . . . 1 . . Hauler 2 | . 1 1 . . . Recycler 6 | . . 4 2 . . Operator 2 | . . 1 1 . . Watcher 3 | . 1 1 1 . . Swarmer 3 | . . . 3 . . Grunt 9 | . . 2 7 . . Duelist 1 | . . 1 . . . Sentry 5 | . . 4 1 . . Best Kill Streak 5 | . 1 4 5 . . Combat Bots Only 4 | . . 3 4 . . Max Kills in Single Turn 1 | . 1 1 1 . . Gunslinging . | . . . . . . Exploded . | . . . . . . Melee 1 | . . . 1 . . Uniques/NPCs Destroyed . | . . . . . . Combat | -11 -10 -9 -8 -7 -7 -------- Run | Yrd Mat Mat Mat Fac DSF Hostile Shots Fired 145 | . . 48 64 . 33 Missed 32 | . . 12 12 . 8 Damage Taken 2034 | . . 476 684 . 874 Core 426 | . . 136 95 . 195 Absorbed by Shields . | . . . . . . Core Remaining (%) 87 | 100 100 66 82 . . Volleys Fired 79 | . 5 46 28 . . Largest 3 | . 2 2 3 . . Hottest 156 | . 100 100 156 . . Shots Fired 164 | . 9 87 68 . . Gun 94 | . 4 41 49 . . Cannon 70 | . 5 46 19 . . Launcher . | . . . . . . Special . | . . . . . . Kinetic 77 | . 5 53 19 . . Thermal 87 | . 4 34 49 . . Explosive . | . . . . . . Electromagnetic . | . . . . . . Robot Hit Streak 10 | . 5 10 8 . . Robot Miss Streak 7 | . 6 7 3 . . Penetration Max . | . . . . . . Secondary Targets . | . . . . . . Shots Hit Robots 145 | . 7 65 61 . 12 Core Hits 52 | . 5 26 18 . 3 Critical Kills 1 | . . . 1 . . Critical Parts Destroyed 2 | . . . 2 . . Critical Strikes 10 | . . 3 7 . . Burn 5 | . . 2 3 . . Blast 2 | . . 1 1 . . Smash 3 | . . . 3 . . Melee Attacks 34 | . . . 21 . 13 Impact 17 | . . . 17 . . Slashing 17 | . . . 4 . 13 Piercing . | . . . . . . Sneak Attacks 8 | . . . 8 . . Combat Hostiles 1 | . . . 1 . . Follow-up Attacks 3 | . . . . . 3 Damage Inflicted 2966 | 8 81 1011 1635 . 231 Guns 885 | . 36 441 408 . . Cannons 844 | . 45 570 229 . . Explosions . | . . . . . . Melee 1210 | . . . 979 . 231 Ramming 27 | 8 . . 19 . . Kinetic 920 | . 45 646 229 . . Thermal 809 | . 36 365 408 . . Explosive . | . . . . . . Electromagnetic . | . . . . . . Impact 665 | . . . 665 . . Slashing 545 | . . . 314 . 231 Piercing . | . . . . . . Highest Corruption . | . . . . . . Average Corruption . | . . . . . . Corruption Purged . | . . . . . . Corruption Blocked . | . . . . . . Overload Shots . | . . . . . . Overflow Damage 403 | . . 18 385 . . Projectiles 29 | . . 18 11 . . Explosions . | . . . . . . Melee 374 | . . . 374 . . Knockbacks 5 | . . 2 3 . . Impact 1 | . . . 1 . . Kinetic 4 | . . 2 2 . . Secondary . | . . . . . . Self-Inflicted Damage . | . . . . . . Shots . | . . . . . . Rammed . | . . . . . . Targets Rammed 2 | 1 . . 1 . . Kicked 2 | 1 . . 1 . . Crushed . | . . . . . . Highest Temperature 462 | . 18 54 462 . . Average Temperature 130 | . 8 19 160 . . Received Heat Transfer 528 | . . 204 324 . . Effects 3 | . . . 3 . . Shutdowns 1 | . . . 1 . . Energy Bleed 2 | . . . 2 . . Siege Activations . | . . . . . . Robots Corrupted 2 | . . . 2 . . Combat Hostiles 1 | . . . 1 . . Parts Fried 9 | . . . 9 . . Impact Corruptions 8 | . . . 8 . . Robots Melted . | . . . . . . Combat Hostiles . | . . . . . . Parts Melted 4 | . . 2 2 . . Heat Transferred 2360 | . 45 1057 1258 . . Parts Sabotaged . | . . . . . . Parts Stolen . | . . . . . . Parts Stripped . | . . . . . . Power Chain Reactions . | . . . . . . Alert | -11 -10 -9 -8 -7 -7 ------- Run | Yrd Mat Mat Mat Fac DSF Peak Influence 227 | . 28 227 227 64 47 Initial 64 | . . 11 38 64 47 Average 96 | . 11 105 122 64 23 Maximum Alert Level 1 | . . 1 1 . . Low Security (%) 86 | 100 100 83 81 100 100 Level 1 13 | . . 16 18 . . Level 2 . | . . . . . . Level 3 . | . . . . . . Level 4 . | . . . . . . Level 5 . | . . . . . . High Security . | . . . . . . Max Security . | . . . . . . Squads Dispatched 4 | . . 1 2 . 1 Investigation . | . . . . . . Extermination . | . . . . . . Reinforcement 4 | . . 1 2 . 1 Assault . | . . . . . . Garrison . | . . . . . . Intercept . | . . . . . . Searches Triggered . | . . . . . . Construction Impeded . | . . . . . . Haulers Reinforced . | . . . . . . Active Scanning Responses . | . . . . . . Cargo Convoy Interrupts . | . . . . . . Stealth | -11 -10 -9 -8 -7 -7 --------- Run | Yrd Mat Mat Mat Fac DSF Distress Signals 3 | . . 1 2 . . Communications Jammed . | . . . . . . Distress Signals . | . . . . . . Times Spotted 39 | . 2 12 23 . 2 Peak Tracking Total 6 | . 2 5 6 . 2 Tactical Retreats 5 | . . 2 3 . . Traps | -11 -10 -9 -8 -7 -7 ------- Run | Yrd Mat Mat Mat Fac DSF Traps Triggered . | . . . . . . Indirectly . | . . . . . . Trap Hack Attempts . | . . . . . . Triggered . | . . . . . . Disarmed . | . . . . . . Reprogrammed . | . . . . . . Reused . | . . . . . . Traps Extracted . | . . . . . . Installed . | . . . . . . Triggered . | . . . . . . Machines | -11 -10 -9 -8 -7 -7 ---------- Run | Yrd Mat Mat Mat Fac DSF Machines Disabled 3 | . . 2 1 . . Max in Single Turn 1 | . . 1 1 . . Machines Repaired . | . . . . . . Machines Dismantled . | . . . . . . Machines Sabotaged . | . . . . . . Overloaded Fab Kills . | . . . . . . Hacking | -11 -10 -9 -8 -7 -7 --------- Run | Yrd Mat Mat Mat Fac DSF Machines Accessed 11 | . 2 2 5 2 . Terminals 9 | . 1 2 4 2 . Fabricators . | . . . . . . Repair Stations . | . . . . . . Recycling Units 2 | . 1 . 1 . . Scanalyzers . | . . . . . . Garrison Access . | . . . . . . Total Hacks 25 | . 6 7 10 2 . Successful 10 | . 3 2 4 1 . Failed 15 | . 3 5 6 1 . Catastrophic 4 | . . 1 2 1 . Database Lockouts . | . . . . . . Manual 18 | . 3 6 9 . . Terminals 21 | . 3 7 9 2 . Fabricators . | . . . . . . Repair Stations . | . . . . . . Recycling Units 4 | . 3 . 1 . . Scanalyzers . | . . . . . . Garrison Access . | . . . . . . Terminal Hacks 4 | . 1 . 2 1 . Part Schematic 1 | . . . 1 . . Open DSF 1 | . . . . 1 . Level Access Points 2 | . 1 . 1 . . Fabricator Hacks . | . . . . . . Repair Station Hacks . | . . . . . . Recycling Unit Hacks 2 | . 1 . 1 . . Retrieve Components 2 | . 1 . 1 . . Scanalyzer . | . . . . . . Garrison Access Hacks . | . . . . . . Unauthorized Hacks 4 | . 1 2 1 . . Terminals 4 | . 1 2 1 . . Botnet 4 | . 1 2 1 . . Fabricators . | . . . . . . Repair Stations . | . . . . . . Recycling Units . | . . . . . . Scanalyzers . | . . . . . . Garrison Access . | . . . . . . Data Cores Recovered . | . . . . . . Used . | . . . . . . Hacking Detections 9 | . 2 2 4 1 . Full Trace Events . | . . . . . . Feedback Events . | . . . . . . Feedback Blocked . | . . . . . . Robot Schematics Acquired . | . . . . . . Robots Built . | . . . . . . Authchips . | . . . . . . Time . | . . . . . . Total Robot Build Rating . | . . . . . . Part Schematics Acquired 1 | . . . 1 . . Parts Built . | . . . . . . Authchips . | . . . . . . Time . | . . . . . . Total Part Build Rating . | . . . . . . Parts Repaired . | . . . . . . Time . | . . . . . . Parts Recycled . | . . . . . . Recycled Matter . | . . . . . . Retrieved Matter . | . . . . . . Retrieved Components 12 | . 3 . 9 . . Parts Scanalyzed . | . . . . . . Part Schematics Acquired . | . . . . . . Parts Damaged . | . . . . . . Bothacking | -11 -10 -9 -8 -7 -7 ------------ Run | Yrd Mat Mat Mat Fac DSF Used RIF Installer . | . . . . . . Robots Hacked . | . . . . . . Non-combat . | . . . . . . Combat . | . . . . . . Robot Hacks Applied . | . . . . . . Relay Couplers Released . | . . . . . . Fabnet Peak Effective % . | . . . . . . Robots Rewired . | . . . . . . Allies Hacked . | . . . . . . Hacks Repelled . | . . . . . . Allies | -11 -10 -9 -8 -7 -7 -------- Run | Yrd Mat Mat Mat Fac DSF Total Allies . | . . . . . . Largest Group . | . . . . . . Highest-Rated Group . | . . . . . . Highest-Rated Ally . | . . . . . . Total Orders . | . . . . . . Ally Attacks . | . . . . . . Total Damage . | . . . . . . Kills . | . . . . . . Allies Corrupted . | . . . . . . Allies Melted . | . . . . . . Intel | -11 -10 -9 -8 -7 -7 ------- Run | Yrd Mat Mat Mat Fac DSF Robot Analysis Total . | . . . . . . Derelict Logs Recovered . | . . . . . . Drone Launches . | . . . . . . Drone Recoveries . | . . . . . . Exploration | -11 -10 -9 -8 -7 -7 ------------- Run | Yrd Mat Mat Mat Fac DSF Turns Passed 2081 | 59 226 502 1121 92 81 Spaces Moved 970 | 42 146 176 495 73 38 Core 5 | 5 . . . . . Treads . | . . . . . . Legs 965 | 37 146 176 495 73 38 Wheels . | . . . . . . Hover . | . . . . . . Flight . | . . . . . . Fastest Speed 50 | 50 120 190 120 120 120 Average Speed 159 | 112 131 190 169 120 123 Slowest Speed 260 | 120 190 190 260 120 260 Overloaded Moves . | . . . . . . Propulsion Burnouts . | . . . . . . Robots Hopped . | . . . . . . Cave-ins Triggered . | . . . . . . Exploration Rate (%) 25 | 3 33 21 45 4 49 Regions Visited 5 Branch Regions . Pre-discovered Areas . | . . . . . . Known Exits Taken 3 | . 1 . 1 1 . Unknown Exits Taken 2 | 1 . 1 . . . Scrap Searched . | . . . . . . Spaces Dug . | . . . . . . Terrain Destroyed . | . . . . . . Melee . | . . . . . . Projectile . | . . . . . . AOE . | . . . . . . Terrain Rammed . | . . . . . . Walls Destroyed . | . . . . . . Machines Disabled . | . . . . . . Actions | -11 -10 -9 -8 -7 -7 --------- Run | Yrd Mat Mat Mat Fac DSF Total 1295 | 50 171 257 686 78 53 Wait 130 | . 7 29 94 . . Move 965 | 41 145 175 494 72 38 Hop . | . . . . . . Pick Up 24 | 2 7 1 10 3 1 Fast Attach 22 | 6 2 2 11 . 1 Attach 11 | . 1 3 4 2 1 Detach 7 | . 1 1 5 . . Swap 4 | . 1 . 3 . . Drop 20 | . 2 . 15 1 2 Fire 79 | . 5 46 28 . . Melee 31 | . . . 21 . 10 Ram . | . . . . . . Kick 2 | 1 . . 1 . . Crush . | . . . . . . Escape Stasis . | . . . . . . Rewire . | . . . . . . Trap . | . . . . . . Miscellaneous . | . . . . . . Route ------- -11/Scrapyard -10/Materials (discovered 3 exits: *Mat x3) -9/Materials -8/Materials (discovered 4 exits: *Fac x3 / *Sto) -7/Factory -7/DSF History --------- Turn | Location | Event 3 | -11/Scrapyard | Discovered new exit (range 15) 60 | -11/Scrapyard | Entered Materials 146 | -10/Materials | Identified exit to Materials 286 | -10/Materials | Entered another Materials area 286 | -9/Materials | Evolved 2 slots: Utility x2 318 | -9/Materials | Build established: Mutant 715 | -9/Materials | Discovered new exit (range 10) 788 | -9/Materials | Entered another Materials area 788 | -8/Materials | Evolved 2 slots: Propulsion x1, Weapon x1 1149 | -8/Materials | Discovered new exit (range 9) 1167 | -8/Materials | Identified exit to Storage 1180 | -8/Materials | Identified exit to Factory 1363 | -8/Materials | Build established: Scavenger-Mutant 1909 | -8/Materials | Entered Factory 1909 | -7/Factory | Evolved 2 slots: Propulsion x1, Utility x1 2001 | -7/Factory | Identified exit to DSF 2001 | -7/Factory | Entered DSF 2039 | -7/DSF | Additional patrols routed to DSF 2082 | -7/DSF | Self-destructed Last Messages --------------- 02043_ Knocked back. 02047_ Great Axe follow-up attack on H-61 Shepherd. 02050_ Knocked back. 02060_ Imp. Melee Analysis Suite destroyed. 02060_ Imp. Signal Interpreter destroyed. 02060_ Critical hit (Blast). 02060_ Knocked back. 02062_ Great Axe follow-up attack on H-61 Shepherd. 02065_ Knocked back. 02069_ Penetrated by Slug. 02070_ Knocked back. 02072_ Penetrated by Slug. 02075_ Carbon-fiber Leg destroyed. 02075_ Lgt. Nuclear Core destroyed. 02075_ Knocked back. 02081_ Aluminum Leg destroyed. 02081_ Knocked back. 02081_ Penetrated by Slug. Map ----- +----------------------------------------------------+ | ???????????????????????????????????????????????? | | ???????????????????????????????????????????????? | | ???????????????????????????????????????????????? | | ???????????????????????????????????????????????? | | ???????????????????????????????????????????????? | | ???????????????????????????????????????????????? | | ???????????????????????????????????????????????? | | ???????????????????????????????????????????????? | | ???????????????????????????????????????????????? | | ??????????????????????? ?????????????????????? | | ??????????????????????? ?????????????????????? | | ????????" ???????????? #????????????????????? | | ????????# ???????????# a ##???????????????????? | | ????????# ??????????? ???????????????????? | | ????????! ??????????? ????????????????????? | | ????????! ??????????? ????????????????????? | | ???????## #?????????## ###??????????????????? | | ???????# !?????????]] !!#??????????????????? | | ???????# !??????????] !!#??????????????????? | | ???????? !??????????] !!???????????????????? | | ??????### ##########?# #?????#??????????????? | | ??????# ##!!!#!!!### ##??!!#??????????????? | | ??????# ##!!!#!!!##a % a##!!!# ##?????????? | | ?????## ^ H ???????? | | ?????#" % % ???????? | | ??????# ^ % % %@ h ???????? | | ??????# #;[[[;!!!;% a##!!!#]]]#??????????? | | ??????# ##[[[;!!!###a ##???!#??????????????? | | ??????### #####;####?# #????????????????????? | | ???????# #????????! !!???????????????????? | | ???????# #????????! !!#??????????????????? | | ???????# #???????!! !!#??????????????????? | | ???????## ###???????## ###??????????????????? | | ???????# !!#????????! ????????????????????? | | ???????#! !!#????????! ???????????????????? | | ???????## ###????????! ???????????????????? | | ??????### ##???#?????# ###??????????????????? | | ????###""! ##!!#!!!##? #????????????????????? | | ???#""""" ????????????????????? | | ???#"##"" ????????????????????? | | ??????#"""""##!!#!!!#!! ?????????????????????? | | ??????#"""""#?###???#??????????????????????????? | | ??????####"##??????????????????????????????????? | | ??????????"#???????????????????????????????????? | | ??????????"#???????????????????????????????????? | | ???????????????????????????????????????????????? | | ???????????????????????????????????????????????? | | ???????????????????????????????????????????????? | | ???????????????????????????????????????????????? | | ???????????????????????????????????????????????? | +----------------------------------------------------+ Best States ------------- Heat Dissipation 41 Energy Generation 18 Energy Capacity 250 Matter Stores 300 Matter Capacity 300 Sight Range 16 Robot Scan Range 15 Terrain Scan Density 10 ECM Strength 1 Armor Coverage 225 Evasion (%) 55 Melee Accuracy 6 Offensive Hacking 10 Item Schematics ----------------- Imp. Aluminum Leg | -8/Materials | Hacked Robot Schematics ------------------ None Fabricated ------------ Nothing Alien Tech Used ----------------- None Achievements -------------- None Challenges ------------ None Game ------ Seed ContainmentRocketDrive Manual? 0 Play Time 00:37:22 Cumulative 31.7 hours Start 2025.03.28 @ 23:54:05 End 2025.03.29 @ 01:43:05 Sessions 1 Manual Loads 0 Difficulty Rogue Special Mode None Game No. 23 Rogue 23 Adventurer 0 Explorer 0 Win Type - Total 0 Types 0/0/0/0/0/0/0/0/0 Lore% 7 Gallery% 22 Achievement% 29 Wizard Run 0 Options --------- Layout 1 ASCII 0 Keyboard 0 Movement Mouse Keybinds 0 Fullscreen 1 Font 24/Smallcaps Map View 50x35 Zoom Use 0% Tactical HUD 1 Map Filters NONE Filters NONE Steam 1 RUN: b3f75fd9-335f-4978-b3ea-5a3d9e76a00f